fUST/lending_fUST_20260406
["ID","MTS","AMOUNT","RATE_DAILY","PERIOD"]
[419864682,1775439348472,9104.80462745,0.00034681,120]
[419864683,1775439361134,1547014.15352508,0.00034681,120]
[419864685,1775439402445,50082.99402481,0.00032876,120]
[419864686,1775439410491,214.755145,0.00032876,120]
[419864699,1775440064729,3000.0,0.00032876,120]
[419864700,1775440096728,3000.0,0.00032876,120]
[419864726,1775440241289,-1000.0,0.00013699,2]
[419864727,1775440241299,-615.0,0.00013699,2]
[419864728,1775440241308,-794.79470931,0.00019635,2]
[419864973,1775440246687,-1728.03018609,0.00019635,2]
[419864974,1775440246696,-1019.1213177,0.00019678,2]
[419864975,1775440246707,-319.690289,0.00019874,2]
[419864976,1775440246716,-247.81758295,0.00020411,2]
[419864977,1775440246727,-300.0,0.00020699,2]
[419864978,1775440246736,-1200.0,0.00020699,2]
[419864979,1775440246745,-407.37868949,0.00020699,2]
[419864980,1775440246755,-500.0,0.00020699,2]
[419864981,1775440246765,-411.34026623,0.00020699,2]
[419864982,1775440246775,-1270.333216,0.000207,2]
[419864983,1775440246796,-16965.23745628,0.000207,2]
[419864984,1775440246807,-3232.7265385,0.000207,2]
[419864985,1775440246818,-14542.07495703,0.000207,2]
[419864986,1775440246847,-5534.23082378,0.000207,2]
[419864987,1775440246901,-9564.81463548,0.000207,2]
[419864992,1775440626038,3286.65,0.00032877,120]
[419864993,1775440881328,-1074.69662264,0.00013423,2]
[419864996,1775441212829,1000.0,0.00032877,120]
[419864997,1775441225699,1007.06,0.00032877,120]
[419864998,1775441253039,4990.17434183,0.00031152,120]
[419865004,1775441418497,175.67811942,0.0002876,120]
[419865023,1775441432738,-8884.16031689,0.000104,2]
[419865024,1775441432749,-1297.01723482,0.000104,2]
[419865025,1775441432760,-7179.19406441,0.000104,2]
[419865049,1775441438858,-527.18973794,0.000104,2]
[419865050,1775441439019,-798.38579127,0.000104,2]
[419865051,1775441439035,-19780.63409816,0.000104,2]
[419865072,1775441441818,-10879.12067499,0.000104,2]
[419865121,1775441446939,-1761.15540571,0.000104,2]
[419865123,1775441446951,-428.0187883,0.00010618,2]
[419865124,1775441446962,-569.0,0.00010618,2]
[419865126,1775441446973,-1000.0,0.00013699,2]
[419865127,1775441446983,-786.07091011,0.00014175,2]
[419865128,1775441446994,-1200.0,0.00014566,2]
[419865129,1775441447004,-300.0,0.00014567,2]
[419865130,1775441447015,-300.0,0.00014616,2]
[419865131,1775441447026,-300.0,0.00014616,2]
[419865132,1775441447036,-300.0,0.00014616,2]
[419865133,1775441447047,-300.0,0.00014616,2]
[419865134,1775441447058,-528.0,0.00015,2]
[419865135,1775441447068,-10000.0,0.00015306,2]
[419865136,1775441447079,-420.0,0.00016003,2]
[419865137,1775441447218,-420.0,0.00016003,2]
[419865138,1775441447233,-420.0,0.00016003,2]
[419865139,1775441447243,-420.0,0.00016003,2]
[419865140,1775441447252,-1680.0,0.00016023,2]
[419865141,1775441447261,-420.0,0.00016024,2]
[419865142,1775441447270,-500.0,0.00016243,2]
[419865143,1775441447279,-500.0,0.00016243,2]
[419865144,1775441447288,-603.34838023,0.00016243,2]
[419865145,1775441447298,-2237.73987118,0.00017005,3]
[419865146,1775441447307,-191.231266,0.00017127,2]
[419865147,1775441447316,-482.0,0.00017521,2]
[419865148,1775441447327,-481.0,0.00017521,2]
[419865149,1775441447336,-587.0,0.00017521,2]
[419865150,1775441447345,-482.0,0.00017521,2]
[419865151,1775441447354,-440.0,0.00017625,2]
[419865152,1775441447363,-164.25152789,0.00018187,2]
[419865153,1775441447373,-295.35709745,0.00018187,2]
[419865154,1775441447382,-160.67191644,0.00019144,2]
[419865155,1775441447391,-183.62504736,0.00019144,2]
[419865157,1775441447401,-286.91413649,0.00019144,2]
[419865158,1775441447410,-412.7432002,0.00019144,2]
[419865159,1775441447419,-500.0,0.00019177,2]
[419865160,1775441447428,-395.56865571,0.00019177,2]
[419865161,1775441447437,-574.15658983,0.00019177,2]
[419865162,1775441447446,-500.0,0.00019177,2]
[419865163,1775441447456,-510.28,0.00019177,2]
[419865164,1775441447465,-511.79276337,0.00019177,2]
[419865165,1775441447475,-151.0,0.00019178,2]
[419865166,1775441447484,-151.0,0.00019178,2]
[419865167,1775441447494,-151.0,0.00019178,2]
[419865168,1775441447503,-151.0,0.00019178,2]
[419865169,1775441447512,-1943.957816,0.00019178,2]
[419865170,1775441447522,-1000.0,0.00019178,2]
[419865171,1775441447531,-1000.0,0.00019178,2]
[419865172,1775441447540,-1000.0,0.00019178,2]
[419865173,1775441447549,-1000.0,0.00019178,2]
[419865174,1775441447559,-1000.0,0.00019178,2]
[419865175,1775441447568,-1000.0,0.00019178,2]
[419865176,1775441447577,-1000.0,0.00019178,2]
[419865177,1775441447586,-1000.0,0.00019178,7]
[419865178,1775441447595,-1000.0,0.00019178,7]
[419865179,1775441447604,-1000.0,0.00019178,7]
[419865180,1775441447613,-1000.0,0.00019178,7]
[419865181,1775441447623,-1000.0,0.00019178,7]
[419865182,1775441447632,-1000.0,0.00019178,7]
[419865183,1775441447642,-1000.0,0.00019178,7]
[419865184,1775441447651,-612.90802822,0.00019178,7]
[419865185,1775441447662,-500.0,0.00019178,2]
[419865186,1775441447671,-151.0,0.00019178,2]
[419865187,1775441447680,-320.0,0.00019183,2]
[419865188,1775441447689,-500.0,0.00019452,2]
[419865189,1775441447698,-500.0,0.00019726,2]
[419865190,1775441447708,-151.0,0.00019908,2]
[419865191,1775441447717,-500.0,0.0002,2]
[419865192,1775441447726,-264.34059521,0.00020274,2]
[419865193,1775441447735,-274.209704,0.00020329,2]
[419865194,1775441447745,-180.67188378,0.00020329,2]
[419865195,1775441447754,-18226.09251718,0.000205,2]
[419865196,1775441447763,-584.34,0.0002059,3]
[419865197,1775441447772,-151.0,0.00020599,2]
[419865198,1775441447781,-151.0,0.00020599,2]
[419865199,1775441447791,-151.0,0.00020599,2]
[419865200,1775441447800,-151.0,0.00020599,2]
[419865201,1775441447809,-151.0,0.000206,2]
[419865202,1775441447818,-151.0,0.000206,2]
[419865203,1775441447827,-275.194445,0.000206,2]
[419865204,1775441447836,-151.0,0.000206,2]
[419865205,1775441447845,-151.0,0.000206,2]
[419865206,1775441447855,-151.0,0.000206,2]
[419865207,1775441447864,-295.00063388,0.000206,2]
[419865208,1775441447873,-151.0,0.000207,2]
[419865209,1775441447882,-167.4116465,0.000207,2]
[419865210,1775441447891,-2982.7768,0.000209,2]
[419865211,1775441447901,-154.0,0.000209,2]
[419865212,1775441447914,-5440.4255499,0.00021136,2]
[419865213,1775441447923,-151.0,0.00021136,2]
[419865214,1775441447933,-151.0,0.00021136,2]
[419865215,1775441447943,-151.0,0.00021136,2]
[419865216,1775441447952,-151.0,0.00021136,2]
[419865217,1775441447962,-151.0,0.00021136,2]
[419865218,1775441447972,-601.52370257,0.00021163,3]
[419865219,1775441447982,-600.0,0.00021163,3]
[419865220,1775441447991,-450.52,0.00021163,3]
[419865221,1775441448001,-182.884069,0.00021164,2]
[419865222,1775441448011,-3038.30994541,0.00021249,3]
[419865223,1775441448020,-330.54782279,0.0002131,2]
[419865224,1775441448030,-500.0,0.0002131,2]
[419865225,1775441448039,-500.0,0.0002131,2]
[419865226,1775441448048,-500.0,0.0002131,2]
[419865227,1775441448058,-495.87261537,0.0002131,2]
[419865228,1775441448067,-500.0,0.0002131,2]
[419865229,1775441448076,-637.08859422,0.0002131,2]
[419865230,1775441448085,-557.5788265,0.00021311,2]
[419865231,1775441448094,-557.5788265,0.00021311,2]
[419865232,1775441448103,-5000.0,0.00021311,2]
[419865233,1775441448112,-5000.0,0.00021311,2]
[419865234,1775441448121,-5000.0,0.00021311,2]
[419865235,1775441448130,-5000.0,0.00021311,2]
[419865236,1775441448139,-5000.0,0.00021311,2]
[419865237,1775441448148,-5000.0,0.00021311,2]
[419865238,1775441448159,-2230.315306,0.00021311,2]
[419865239,1775441448167,-5000.0,0.00021311,2]
[419865240,1775441448176,-5000.0,0.00021311,2]
[419865241,1775441448185,-5000.0,0.00021311,2]
[419865242,1775441448194,-5000.0,0.00021311,2]
[419865243,1775441448203,-5000.0,0.00021311,2]
[419865244,1775441448212,-5000.0,0.00021311,2]
[419865245,1775441448220,-5000.0,0.00021311,2]
[419865246,1775441448229,-5000.0,0.00021311,2]
[419865247,1775441448239,-5000.0,0.00021311,2]
[419865248,1775441448248,-5000.0,0.00021311,2]
[419865249,1775441448257,-5000.0,0.00021311,2]
[419865250,1775441448266,-578.20924308,0.00021366,2]
[419865251,1775441448275,-234.62964228,0.00021373,2]
[419865252,1775441448284,-501.03045401,0.00021373,2]
[419865253,1775441448293,-501.6404084,0.00021373,2]
[419865254,1775441448302,-500.94839325,0.00021373,2]
[419865255,1775441448311,-500.0,0.00021373,2]
[419865256,1775441448320,-500.0,0.00021373,2]
[419865257,1775441448330,-500.0,0.00021373,2]
[419865258,1775441448339,-500.0,0.00021373,2]
[419865259,1775441448348,-271.39246779,0.00021373,2]
[419865260,1775441448357,-500.0,0.00021373,2]
[419865261,1775441448366,-599.60298507,0.00021421,2]
[419865262,1775441448375,-500.99001779,0.00021431,2]
[419865263,1775441448384,-503.70328472,0.00021473,2]
[419865264,1775441448393,-151.0,0.00021473,2]
[419865265,1775441448402,-151.0,0.00021473,2]
[419865266,1775441448413,-151.0,0.00021473,2]
[419865267,1775441448422,-200.0,0.00021473,2]
[419865268,1775441448431,-158.87939784,0.00021476,2]
[419865269,1775441448441,-151.0,0.00021498,2]
[419865270,1775441448450,-151.0,0.00021498,2]
[419865271,1775441448459,-151.0,0.00021498,2]
[419865272,1775441448468,-151.0,0.00021498,2]
[419865273,1775441448478,-151.0,0.00021498,2]
[419865274,1775441448487,-151.0,0.00021498,2]
[419865275,1775441448496,-151.0,0.00021498,2]
[419865276,1775441448505,-1008.339575,0.0002181,2]
[419865277,1775441448514,-1406.0,0.00021811,2]
[419865278,1775441448523,-2208.349,0.00021811,2]
[419865279,1775441448533,-278.598,0.00021811,2]
[419865280,1775441448542,-188.68431131,0.00021849,2]
[419865281,1775441448551,-215.63921292,0.00021849,2]
[419865282,1775441448560,-336.9362702,0.00021849,2]
[419865283,1775441448570,-484.70304085,0.00021849,2]
[419865284,1775441448579,-333.53365795,0.00021849,2]
[419865286,1775441448588,-414.30821109,0.00021849,2]
[419865288,1775441448597,-745.75477996,0.00021849,2]
[419865289,1775441448606,-1325.78627548,0.00021849,2]
[419865290,1775441448615,-605.08289857,0.00021859,2]
[419865291,1775441448625,-227.74778137,0.00021859,2]
[419865292,1775441448634,-154.0,0.000219,2]
[419865293,1775441448643,-11012.54410881,0.000219,2]
[419865294,1775441448652,-151.0,0.00021918,2]
[419865295,1775441448661,-151.888937,0.00021918,2]
[419865296,1775441448670,-151.0,0.00021918,2]
[419865297,1775441448680,-151.0,0.00021918,2]
[419865298,1775441448689,-227.429353,0.00021918,2]
[419865300,1775441448698,-151.0,0.00021918,2]
[419865301,1775441448707,-151.0,0.00021918,2]
[419865303,1775441448716,-151.0,0.00021918,2]
[419865305,1775441448725,-151.0,0.00021918,2]
[419865306,1775441448735,-151.0,0.00021918,2]
[419865307,1775441448744,-151.0,0.00021918,2]
[419865308,1775441448753,-151.0,0.00021918,2]
[419865309,1775441448762,-151.0,0.00021918,2]
[419865310,1775441448771,-151.0,0.00021918,2]
[419865311,1775441448781,-151.0,0.00021918,2]
[419865312,1775441448789,-151.0,0.00021918,2]
[419865313,1775441448799,-212.625352,0.00021918,2]
[419865314,1775441448808,-151.0,0.00021918,2]
[419865315,1775441448817,-151.0,0.00021918,2]
[419865316,1775441448826,-151.0,0.00021918,2]
[419865317,1775441448834,-151.0,0.00021918,2]
[419865318,1775441448843,-151.0,0.00021918,2]
[419865319,1775441448852,-151.0,0.00021918,2]
[419865320,1775441448861,-151.0,0.00021918,2]
[419865321,1775441448870,-151.0,0.00021918,2]
[419865322,1775441448879,-151.0,0.00021918,2]
[419865323,1775441448889,-151.0,0.00021918,2]
[419865324,1775441448898,-151.0,0.00021918,2]
[419865325,1775441448908,-151.0,0.00021918,2]
[419865326,1775441448918,-151.0,0.00021918,2]
[419865327,1775441448927,-226.443224,0.00021918,2]
[419865328,1775441448936,-379.514754,0.00021918,2]
[419865329,1775441448945,-379.514754,0.00021918,2]
[419865330,1775441448955,-379.514754,0.00021918,2]
[419865331,1775441448964,-379.514754,0.00021918,2]
[419865332,1775441448973,-379.514754,0.00021918,2]
[419865333,1775441448982,-379.514754,0.00021918,2]
[419865334,1775441448991,-379.514754,0.00021918,2]
[419865335,1775441449000,-379.514754,0.00021918,2]
[419865336,1775441449010,-379.514754,0.00021918,2]
[419865337,1775441449019,-379.514754,0.00021918,2]
[419865338,1775441449028,-379.514754,0.00021918,2]
[419865339,1775441449038,-379.514754,0.00021918,2]
[419865340,1775441449047,-379.514754,0.00021918,2]
[419865341,1775441449056,-379.514754,0.00021918,2]
[419865342,1775441449066,-379.514754,0.00021918,2]
[419865343,1775441449075,-379.514754,0.00021918,2]
[419865344,1775441449085,-379.514754,0.00021918,2]
[419865345,1775441449094,-379.514754,0.00021918,2]
[419865346,1775441449103,-379.514754,0.00021918,2]
[419865347,1775441449112,-379.514757,0.00021918,2]
[419865348,1775441449121,-152.287627,0.00021918,2]
[419865349,1775441449130,-151.0,0.00021918,2]
[419865350,1775441449140,-151.0,0.00021918,2]
[419865351,1775441449149,-151.0,0.00021918,2]
[419865352,1775441449160,-151.0,0.00021918,2]
[419865353,1775441449169,-151.0,0.00021918,2]
[419865354,1775441449178,-151.0,0.00021918,2]
[419865355,1775441449187,-151.0,0.00021918,2]
[419865356,1775441449197,-151.0,0.00021918,2]
[419865357,1775441449206,-151.0,0.00021918,2]
[419865358,1775441449216,-288.404383,0.00021918,2]
[419865359,1775441449225,-151.0,0.00021918,2]
[419865360,1775441449234,-151.0,0.00021918,2]
[419865361,1775441449243,-151.0,0.00021918,2]
[419865362,1775441449252,-151.0,0.00021918,2]
[419865363,1775441449263,-151.0,0.00021918,2]
[419865364,1775441449272,-151.0,0.00021918,2]
[419865365,1775441449282,-151.0,0.00021918,2]
[419865366,1775441449291,-151.0,0.00021918,2]
[419865367,1775441449300,-151.0,0.00021918,2]
[419865368,1775441449309,-152.348552,0.00021918,2]
[419865369,1775441449318,-151.0,0.00021918,2]
[419865370,1775441449327,-153.186163,0.00021918,2]
[419865371,1775441449336,-151.0,0.00021918,2]
[419865372,1775441449345,-151.0,0.00021918,2]
[419865373,1775441449354,-151.0,0.00021918,2]
[419865374,1775441449364,-151.0,0.00021918,2]
[419865375,1775441449373,-151.0,0.00021918,2]
[419865376,1775441449382,-153.41209,0.00021918,2]
[419865377,1775441449391,-151.0,0.00021918,2]
[419865378,1775441449401,-151.0,0.00021918,2]
[419865379,1775441449412,-151.0,0.00021918,2]
[419865380,1775441449421,-151.0,0.00021918,2]
[419865381,1775441449431,-151.0,0.00021918,2]
[419865382,1775441449441,-151.0,0.00021918,2]
[419865383,1775441449451,-151.0,0.00021918,2]
[419865384,1775441449460,-151.0,0.00021918,2]
[419865385,1775441449469,-237.100128,0.00021918,2]
[419865386,1775441449479,-151.0,0.00021918,2]
[419865387,1775441449488,-155.458783,0.00021918,2]
[419865388,1775441449497,-151.0,0.00021918,2]
[419865389,1775441449506,-151.0,0.00021918,2]
[419865390,1775441449516,-155.579116,0.00021918,2]
[419865391,1775441449525,-151.0,0.00021918,2]
[419865392,1775441449534,-151.0,0.00021918,2]
[419865393,1775441449543,-151.0,0.00021918,2]
[419865394,1775441449552,-151.0,0.00021918,2]
[419865395,1775441449562,-209.04671,0.00021918,2]
[419865396,1775441449571,-151.0,0.00021918,2]
[419865397,1775441449580,-151.0,0.00021918,2]
[419865398,1775441449589,-151.0,0.00021918,2]
[419865399,1775441449598,-151.0,0.00021918,2]
[419865400,1775441449607,-151.0,0.00021918,2]
[419865401,1775441449616,-203.630026,0.00021918,2]
[419865402,1775441449625,-154.432981,0.00021918,2]
[419865403,1775441449635,-151.0,0.00021918,2]
[419865404,1775441449647,-151.0,0.00021918,2]
[419865405,1775441449659,-151.0,0.00021918,2]
[419865406,1775441449668,-151.0,0.00021918,2]
[419865407,1775441449678,-151.0,0.00021918,2]
[419865408,1775441449687,-151.0,0.00021918,2]
[419865409,1775441449696,-151.0,0.00021918,2]
[419865410,1775441449790,-151.0,0.00021918,2]
[419865411,1775441449800,-151.0,0.00021918,2]
[419865412,1775441449809,-151.0,0.00021918,2]
[419865413,1775441449818,-151.0,0.00021918,2]
[419865414,1775441449827,-151.0,0.00021918,2]
[419865415,1775441449836,-151.0,0.00021918,2]
[419865416,1775441449845,-151.0,0.00021918,2]
[419865417,1775441449853,-151.0,0.00021918,2]
[419865418,1775441449863,-151.0,0.00021918,2]
[419865419,1775441449872,-151.0,0.00021918,2]
[419865420,1775441449880,-151.0,0.00021918,2]
[419865421,1775441449890,-163.105132,0.00021918,2]
[419865422,1775441449899,-155.725924,0.00021918,2]
[419865423,1775441449909,-151.0,0.00021918,2]
[419865424,1775441449917,-151.0,0.00021918,2]
[419865425,1775441449926,-154.447735,0.00021918,2]
[419865426,1775441449935,-247.120766,0.00021918,2]
[419865427,1775441449944,-247.120766,0.00021918,2]
[419865428,1775441449953,-247.120766,0.00021918,2]
[419865429,1775441449962,-247.120766,0.00021918,2]
[419865430,1775441449971,-247.120766,0.00021918,2]
[419865431,1775441449980,-247.120766,0.00021918,2]
[419865432,1775441449989,-247.120766,0.00021918,2]
[419865433,1775441449998,-247.120766,0.00021918,2]
[419865434,1775441450007,-247.120766,0.00021918,2]
[419865435,1775441450016,-247.120766,0.00021918,2]
[419865436,1775441450025,-247.120766,0.00021918,2]
[419865437,1775441450033,-247.120766,0.00021918,2]
[419865438,1775441450043,-247.120766,0.00021918,2]
[419865439,1775441450054,-247.120766,0.00021918,2]
[419865440,1775441450064,-151.0,0.00021918,2]
[419865441,1775441450074,-247.120766,0.00021918,2]
[419865442,1775441450083,-151.0,0.00021918,2]
[419865443,1775441450094,-247.120766,0.00021918,2]
[419865444,1775441450103,-151.0,0.00021918,2]
[419865445,1775441450111,-247.120766,0.00021918,2]
[419865446,1775441450120,-151.0,0.00021918,2]
[419865447,1775441450129,-247.120766,0.00021918,2]
[419865448,1775441450138,-151.0,0.00021918,2]
[419865449,1775441450147,-247.120766,0.00021918,2]
[419865450,1775441450157,-151.0,0.00021918,2]
[419865451,1775441450166,-247.120763,0.00021918,2]
[419865452,1775441450174,-151.0,0.00021918,2]
[419865453,1775441450184,-151.0,0.00021918,2]
[419865454,1775441450193,-151.0,0.00021918,2]
[419865455,1775441450202,-151.0,0.00021918,2]
[419865456,1775441450211,-217.034952,0.00021918,2]
[419865457,1775441450223,-151.0,0.00021918,2]
[419865458,1775441450233,-151.0,0.00021918,2]
[419865459,1775441450243,-151.0,0.00021918,2]
[419865460,1775441450252,-151.0,0.00021918,2]
[419865461,1775441450262,-151.0,0.00021918,2]
[419865462,1775441450272,-151.0,0.00021918,2]
[419865463,1775441450282,-151.0,0.00021918,2]
[419865464,1775441450292,-151.0,0.00021918,2]
[419865465,1775441450302,-151.0,0.00021918,2]
[419865466,1775441450310,-151.0,0.00021918,2]
[419865467,1775441450319,-297.65585,0.00021918,2]
[419865468,1775441450330,-1000.0,0.00021921,2]
[419865469,1775441450340,-505.64226461,0.00021921,2]
[419865470,1775441450349,-1000.0,0.00021921,2]
[419865471,1775441450359,-1000.0,0.00021921,2]
[419865472,1775441450368,-1000.0,0.00021921,2]
[419865473,1775441450377,-2071.54105544,0.00021944,2]
[419865474,1775441450386,-500.0,0.00021973,2]
[419865475,1775441450395,-500.0,0.00021973,2]
[419865476,1775441450404,-281.0,0.00022,2]
[419865477,1775441450413,-154.0,0.00022,2]
[419865478,1775441450422,-153.0,0.00022,2]
[419865479,1775441450431,-173.0,0.00022,2]
[419865480,1775441450440,-84336.94590926,0.00022,2]
[419865481,1775441450449,-500.0,0.00022041,2]
[419865482,1775441450458,-381.18132337,0.00022262,2]
[419865483,1775441450468,-155.03157557,0.00022283,2]
[419865484,1775441450477,-150.29561816,0.00022466,2]
[419865485,1775441450486,-1500.0,0.00022468,2]
[419865486,1775441450495,-1500.0,0.00022468,2]
[419865487,1775441450505,-1500.0,0.00022468,2]
[419865488,1775441450515,-1500.0,0.00022469,2]
[419865489,1775441450524,-1000.0,0.00022521,2]
[419865490,1775441450533,-1000.0,0.00022521,2]
[419865491,1775441450542,-155.27427413,0.00022589,2]
[419865492,1775441450552,-3507.6504948,0.00022664,15]
[419865493,1775441450562,-1008.339575,0.00022728,2]
[419865494,1775441450571,-250.0,0.00022816,4]
[419865495,1775441450580,-253.64,0.00022816,4]
[419865496,1775441450589,-158.33079737,0.000229,2]
[419865497,1775441450599,-947.0,0.0002299,3]
[419865498,1775441450608,-452.74884382,0.0002299,3]
[419865499,1775441450617,-1000.71657401,0.00023,2]
[419865500,1775441450626,-281.0,0.00023,2]
[419865501,1775441450636,-270.83333333,0.00023,2]
[419865502,1775441450645,-154.0,0.00023,2]
[419865503,1775441450654,-153.0,0.00023,2]
[419865504,1775441450663,-150.198,0.00023005,2]
[419865505,1775441450672,-150.203,0.00023005,2]
[419865506,1775441450681,-152.631,0.00023005,2]
[419865507,1775441450691,-2000.0,0.00023016,2]
[419865508,1775441450701,-2000.0,0.00023016,2]
[419865509,1775441450710,-2000.0,0.00023016,2]
[419865510,1775441450719,-594.36469907,0.00023017,2]
[419865511,1775441450729,-1500.0,0.00023068,2]
[419865512,1775441450738,-1500.0,0.00023068,2]
[419865513,1775441450747,-1131.81192869,0.00023123,3]
[419865514,1775441450756,-270.83333333,0.00023123,3]
[419865515,1775441450766,-263.398238,0.00023157,14]
[419865516,1775441450775,-195.728799,0.00023173,14]
[419865517,1775441450785,-160.0,0.00023173,14]
[419865518,1775441450794,-192.033447,0.00023173,14]
[419865519,1775441450803,-224.066894,0.00023173,14]
[419865520,1775441450812,-196.3430609,0.00023183,2]
[419865521,1775441450821,-178.140546,0.00023242,14]
[419865522,1775441450830,-160.0,0.00023242,14]
[419865523,1775441450839,-248.233182,0.00023242,14]
[419865524,1775441450848,-336.466365,0.00023242,14]
[419865525,1775441450857,-2980.03610071,0.00023262,2]
[419865526,1775441450867,-252.365774,0.0002352,14]
[419865527,1775441450875,-2500.0,0.00023564,2]
[419865528,1775441450885,-2500.0,0.00023564,2]
[419865529,1775441450894,-2500.0,0.00023564,2]
[419865530,1775441450904,-2000.0,0.00023616,2]
[419865531,1775441450913,-1153.8350476,0.00023616,2]
[419865532,1775441450923,-160.0,0.0002363,14]
[419865533,1775441450932,-216.343092,0.0002363,14]
[419865534,1775441450941,-272.686184,0.0002363,14]
[419865535,1775441450950,-1008.339575,0.00023646,2]
[419865536,1775441450960,-41919.7839575,0.0002375,2]
[419865537,1775441450988,-63722.15473282,0.0002375,2]
[419865538,1775441450999,-984.91960199,0.0002375,2]
[419865539,1775441451011,-380.05155017,0.0002375,2]
[419865540,1775441451022,-775.45110368,0.0002375,2]
[419865541,1775441451034,-499.48143251,0.0002375,2]
[419865542,1775441451045,-11372.84577771,0.0002375,2]
[419865543,1775441451154,5001.9,0.00032877,120]
[419865544,1775441543910,2000.0,0.00032877,120]
[419865545,1775441608202,500.0,0.0003287,120]
[419865550,1775442236585,659.37,0.000328,120]
[419865551,1775442239591,10000.0,0.00032877,120]
[419865552,1775442248272,10000.0,0.00032877,120]
[419865553,1775442279008,10000.0,0.00032877,120]
[419865554,1775442310952,1254.96,0.00032187,120]
[419865555,1775442331032,619.73,0.00032877,120]
[419865584,1775442633050,-415.5682228,0.00013699,2]
[419865588,1775442633106,-584.4317772,0.00013699,2]
[419865589,1775442633116,-615.0,0.00013699,2]
[419865590,1775442633126,-300.0,0.00019177,2]
[419865591,1775442633135,-1200.0,0.00019177,2]
[419865592,1775442633145,-1000.0,0.00019178,2]
[419865593,1775442633155,-1000.0,0.00019178,2]
[419865594,1775442633165,-1000.0,0.00019178,2]
[419865595,1775442633174,-1000.0,0.00019178,7]
[419865596,1775442633184,-1000.0,0.00019178,7]
[419865597,1775442633193,-1000.0,0.00019178,7]
[419865600,1775442633203,-21.85024667,0.00019178,7]
[419865617,1775442638244,-161.21723346,0.00020742,5]
[419865618,1775442638254,-300.0,0.00020794,2]
[419865619,1775442638264,-338.78276654,0.0002119,2]
[419865620,1775442638358,-218.79605996,0.0002119,2]
[419865621,1775442638367,-781.20394004,0.0002119,2]
[419865649,1775442646168,-978.14975333,0.0002119,2]
[419865650,1775442646179,-398.24814037,0.0002119,2]
[419865651,1775442646188,-2230.315306,0.0002119,2]
[419865652,1775442646197,-578.20924308,0.00021245,2]
[419865653,1775442646206,-599.60298507,0.000213,2]
[419865654,1775442646216,-621.78829552,0.00021355,2]
[419865655,1775442646225,-644.79446246,0.0002141,2]
[419865656,1775442646234,-679.04651628,0.00021465,2]
[419865657,1775442646243,-1129.56333298,0.00021738,2]
[419865658,1775442646252,-156.66529012,0.00022,2]
[419865659,1775442646262,-153.0,0.00022,2]
[419865660,1775442646271,-644.457,0.00022843,2]
[419865661,1775442646280,-989.032,0.00022843,2]
[419865662,1775442646289,-184.0,0.00022843,2]
[419865663,1775442646298,-489.381,0.00022843,2]
[419865664,1775442646307,-595.59581777,0.00022965,2]
[419865665,1775442646316,-856.80031961,0.00022965,2]
[419865666,1775442646325,-542.549953,0.00022965,2]
[419865667,1775442646334,-438.9664911,0.00022965,2]
[419865668,1775442646344,-153.0,0.00023,2]
[419865669,1775442646353,-397.0,0.00023,2]
[419865670,1775442646362,-270.83333333,0.00023,2]
[419865671,1775442646371,-13676.7233668,0.0002364,2]